[Event "Titled Tuesday Blitz December 27 Early 2022"]
[White "Bluebaum, Matthias"]
[Black "Zierk, Steven"]
[WhiteFideId "24651516"]
[BlackFideId "2034255"]
[WhiteElo "2669"]
[BlackElo "2488"]
[Result "1-0"]
[Round "08"]
[TimeControl "180+2"]
[Date "2022.12.27"]
[WhiteClock "0:00:03"]
[BlackClock "0:00:02"]

1. d4 {[%clk 0:03:00]}  d5 {[%clk 0:02:54]} 2. c4 {[%clk 0:03:01]}  dxc4 {[%clk 0:02:54]} 3. e4 {[%clk 0:03:01]}  Nf6 {[%clk 0:02:52]} 4. e5 {[%clk 0:03:01]}  Nd5 {[%clk 0:02:53]} 5. Bxc4 {[%clk 0:03:02]}  Nc6 {[%clk 0:02:52]} 6. Nc3 {[%clk 0:03:02]}  Nb6 {[%clk 0:02:51]} 7. Bb5 {[%clk 0:03:02]}  e6 {[%clk 0:02:51]} 8. Nge2 {[%clk 0:03:02]}  Bd7 {[%clk 0:02:50]} 9. a3 {[%clk 0:03:02]}  Ne7 {[%clk 0:02:47]} 10. Bxd7+ {[%clk 0:03:01]}  Qxd7 {[%clk 0:02:47]} 11. O-O {[%clk 0:03:01]}  O-O-O {[%clk 0:02:45]} 12. b4 {[%clk 0:02:58]}  f5 {[%clk 0:02:40]} 13. exf6 {[%clk 0:02:49]}  gxf6 {[%clk 0:02:41]} 14. Ne4 {[%clk 0:02:50]}  Ned5 {[%clk 0:02:36]} 15. Nc5 {[%clk 0:02:49]}  Qf7 {[%clk 0:02:29]} 16. Qb3 {[%clk 0:02:46]}  Rg8 {[%clk 0:02:25]} 17. a4 {[%clk 0:02:38]}  Bd6 {[%clk 0:02:11]} 18. a5 {[%clk 0:02:02]}  Nd7 {[%clk 0:01:54]} 19. a6 {[%clk 0:02:01]}  Bxh2+ {[%clk 0:01:35]} 20. Kxh2 {[%clk 0:01:58]}  Qh5+ {[%clk 0:01:35]} 21. Qh3 {[%clk 0:01:38]}  Qxe2 {[%clk 0:01:36]} 22. axb7+ {[%clk 0:01:38]}  Kb8 {[%clk 0:01:36]} 23. Nxe6 {[%clk 0:01:36]}  Qxf1 {[%clk 0:01:26]} 24. Qf3 {[%clk 0:00:30]}  N7b6 {[%clk 0:00:58]} 25. Bb2 {[%clk 0:00:06]}  Qb5 {[%clk 0:00:47]} 26. Nc5 {[%clk 0:00:07]}  Nxb4 {[%clk 0:00:41]} 27. Bc3 {[%clk 0:00:03]}  N4d5 {[%clk 0:00:26]} 28. Bd2 {[%clk 0:00:03]}  Nc4 {[%clk 0:00:17]} 29. Be1 {[%clk 0:00:03]}  Rd6 {[%clk 0:00:14]} 30. Rc1 {[%clk 0:00:02]}  Ncb6 {[%clk 0:00:11]} 31. Ra1 {[%clk 0:00:02]}  Nb4 {[%clk 0:00:09]} 32. Bxb4 {[%clk 0:00:02]}  Rd5 {[%clk 0:00:05]} 33. Be1 {[%clk 0:00:02]}  Qc6 {[%clk 0:00:02]} 34. Ra3 {[%clk 0:00:02]}  Rxc5 {[%clk 0:00:01]} 35. dxc5 {[%clk 0:00:03]}  Qxc5 {[%clk 0:00:02]} 36. Qxf6 {[%clk 0:00:03]} 1-0


[Site "https://www.chess.com"]

[Event "Titled Tuesday Blitz December 27 Early 2022"]
[White "Bok, Benjamin"]
[Black "Gorodetzky, David"]
[WhiteFideId "1017063"]
[BlackFideId "2813416"]
[WhiteElo "2607"]
[BlackElo "2485"]
[Result "1-0"]
[Round "08"]
[TimeControl "180+2"]
[Date "2022.12.27"]
[WhiteClock "0:00:05"]
[BlackClock "0:00:01"]

1. d4 {[%clk 0:03:00]}  Nf6 {[%clk 0:02:59]} 2. c4 {[%clk 0:03:01]}  c5 {[%clk 0:02:59]} 3. Nf3 {[%clk 0:03:00]}  cxd4 {[%clk 0:02:59]} 4. Nxd4 {[%clk 0:03:01]}  e5 {[%clk 0:02:59]} 5. Nb5 {[%clk 0:03:01]}  d5 {[%clk 0:02:58]} 6. cxd5 {[%clk 0:03:02]}  a6 {[%clk 0:02:48]} 7. N5c3 {[%clk 0:03:02]}  Bc5 {[%clk 0:02:49]} 8. g3 {[%clk 0:02:44]}  h5 {[%clk 0:02:36]} 9. h3 {[%clk 0:02:05]}  e4 {[%clk 0:01:53]} 10. Bg2 {[%clk 0:02:04]}  e3 {[%clk 0:01:53]} 11. Bxe3 {[%clk 0:01:52]}  Bxe3 {[%clk 0:01:53]} 12. fxe3 {[%clk 0:01:53]}  Qd6 {[%clk 0:01:41]} 13. Kf2 {[%clk 0:01:41]}  h4 {[%clk 0:01:41]} 14. gxh4 {[%clk 0:01:35]}  Nbd7 {[%clk 0:01:19]} 15. Qd4 {[%clk 0:01:28]}  Ne5 {[%clk 0:00:48]} 16. Nd2 {[%clk 0:01:25]}  Bf5 {[%clk 0:00:48]} 17. Nf3 {[%clk 0:01:03]}  Nfd7 {[%clk 0:00:46]} 18. Rac1 {[%clk 0:00:53]}  Kf8 {[%clk 0:00:28]} 19. Qf4 {[%clk 0:00:48]}  Bg6 {[%clk 0:00:21]} 20. Rhd1 {[%clk 0:00:35]}  Re8 {[%clk 0:00:21]} 21. Ng5 {[%clk 0:00:33]}  Nf6 {[%clk 0:00:18]} 22. a3 {[%clk 0:00:28]}  Nh5 {[%clk 0:00:18]} 23. Qb4 {[%clk 0:00:27]}  Qxb4 {[%clk 0:00:13]} 24. axb4 {[%clk 0:00:27]}  Nf6 {[%clk 0:00:11]} 25. d6 {[%clk 0:00:24]}  Rxh4 {[%clk 0:00:12]} 26. Bxb7 {[%clk 0:00:21]}  Rxb4 {[%clk 0:00:12]} 27. Bxa6 {[%clk 0:00:21]}  Rxb2 {[%clk 0:00:12]} 28. Nf3 {[%clk 0:00:17]}  Ned7 {[%clk 0:00:10]} 29. Bd3 {[%clk 0:00:15]}  Bh5 {[%clk 0:00:09]} 30. Rb1 {[%clk 0:00:10]}  Rxb1 {[%clk 0:00:09]} 31. Rxb1 {[%clk 0:00:11]}  Rd8 {[%clk 0:00:10]} 32. e4 {[%clk 0:00:10]}  Ne8 {[%clk 0:00:07]} 33. Rd1 {[%clk 0:00:08]}  Nxd6 {[%clk 0:00:06]} 34. e5 {[%clk 0:00:08]}  Ne8 {[%clk 0:00:06]} 35. Bf5 {[%clk 0:00:08]}  Ke7 {[%clk 0:00:04]} 36. Nd5+ {[%clk 0:00:08]}  Kf8 {[%clk 0:00:04]} 37. Nb6 {[%clk 0:00:08]}  Nxb6 {[%clk 0:00:03]} 38. Rxd8 {[%clk 0:00:08]}  Ke7 {[%clk 0:00:04]} 39. Rb8 {[%clk 0:00:08]}  Nc4 {[%clk 0:00:04]} 40. Rb7+ {[%clk 0:00:08]}  Kf8 {[%clk 0:00:04]} 41. Bd7 {[%clk 0:00:09]}  Bxf3 {[%clk 0:00:03]} 42. exf3 {[%clk 0:00:09]}  Nxe5 {[%clk 0:00:04]} 43. Bxe8 {[%clk 0:00:09]}  Kxe8 {[%clk 0:00:04]} 44. Kg3 {[%clk 0:00:10]}  Ng6 {[%clk 0:00:04]} 45. Rb8+ {[%clk 0:00:10]}  Ke7 {[%clk 0:00:05]} 46. h4 {[%clk 0:00:10]}  Kf6 {[%clk 0:00:05]} 47. Rb6+ {[%clk 0:00:10]}  Kf5 {[%clk 0:00:04]} 48. Rb5+ {[%clk 0:00:09]}  Kf6 {[%clk 0:00:04]} 49. f4 {[%clk 0:00:10]}  Ne7 {[%clk 0:00:05]} 50. Rb6+ {[%clk 0:00:09]}  Kf5 {[%clk 0:00:05]} 51. Rb7 {[%clk 0:00:09]}  Kf6 {[%clk 0:00:05]} 52. Kg4 {[%clk 0:00:10]}  g6 {[%clk 0:00:06]} 53. Ra7 {[%clk 0:00:08]}  Nf5 {[%clk 0:00:06]} 54. Ra6+ {[%clk 0:00:07]}  Kg7 {[%clk 0:00:07]} 55. h5 {[%clk 0:00:08]}  Ne3+ {[%clk 0:00:02]} 56. Kg5 {[%clk 0:00:06]}  gxh5 {[%clk 0:00:01]} 57. Kxh5 {[%clk 0:00:06]}  Nf5 {[%clk 0:00:01]} 58. Kg5 {[%clk 0:00:06]}  Nh6 {[%clk 0:00:01]} 59. Rxh6 {[%clk 0:00:05]} 1-0


[Site "https://www.chess.com"]

[Event "Titled Tuesday Blitz December 27 Early 2022"]
[White "Bryakin, Mikhail"]
[Black "Volkov, Maksim"]
[WhiteFideId "4165314"]
[BlackFideId "54123070"]
[WhiteElo "2455"]
[BlackElo "2258"]
[Result "1-0"]
[Round "08"]
[TimeControl "180+2"]
[Date "2022.12.27"]
[WhiteClock "0:00:20"]
[BlackClock "0:00:02"]

1. b3 {[%clk 0:03:00]}  e5 {[%clk 0:02:56]} 2. Bb2 {[%clk 0:03:01]}  Nc6 {[%clk 0:02:57]} 3. e3 {[%clk 0:03:02]}  Nf6 {[%clk 0:02:57]} 4. Nf3 {[%clk 0:03:02]}  e4 {[%clk 0:02:57]} 5. Ne5 {[%clk 0:03:00]}  Nxe5 {[%clk 0:02:51]} 6. Bxe5 {[%clk 0:03:00]}  d5 {[%clk 0:02:50]} 7. Be2 {[%clk 0:02:57]}  Bd6 {[%clk 0:02:50]} 8. Bb2 {[%clk 0:02:57]}  O-O {[%clk 0:02:49]} 9. h3 {[%clk 0:02:56]}  c6 {[%clk 0:02:46]} 10. c4 {[%clk 0:02:48]}  Re8 {[%clk 0:02:40]} 11. Nc3 {[%clk 0:02:28]}  Be5 {[%clk 0:02:38]} 12. Qc2 {[%clk 0:01:59]}  d4 {[%clk 0:02:19]} 13. exd4 {[%clk 0:01:55]}  Bxd4 {[%clk 0:02:19]} 14. Nd1 {[%clk 0:01:49]}  c5 {[%clk 0:02:07]} 15. Ne3 {[%clk 0:01:44]}  Qd6 {[%clk 0:02:00]} 16. O-O-O {[%clk 0:01:42]}  a5 {[%clk 0:01:58]} 17. a4 {[%clk 0:01:41]}  Ra6 {[%clk 0:01:42]} 18. g4 {[%clk 0:01:41]}  Nd7 {[%clk 0:01:37]} 19. Nf5 {[%clk 0:01:40]}  Qe5 {[%clk 0:01:35]} 20. f4 {[%clk 0:01:35]}  Qxf4 {[%clk 0:01:14]} 21. Nxd4 {[%clk 0:01:31]}  cxd4 {[%clk 0:01:14]} 22. Bxd4 {[%clk 0:01:31]}  Qd6 {[%clk 0:01:02]} 23. Qc3 {[%clk 0:01:19]}  Nc5 {[%clk 0:00:53]} 24. Kc2 {[%clk 0:01:00]}  f6 {[%clk 0:00:46]} 25. Qe3 {[%clk 0:00:47]}  Rc6 {[%clk 0:00:43]} 26. Bc3 {[%clk 0:00:42]}  b6 {[%clk 0:00:37]} 27. h4 {[%clk 0:00:36]}  Be6 {[%clk 0:00:31]} 28. Rdf1 {[%clk 0:00:33]}  Bf7 {[%clk 0:00:24]} 29. g5 {[%clk 0:00:34]}  Nd3 {[%clk 0:00:20]} 30. gxf6 {[%clk 0:00:31]}  Qa3 {[%clk 0:00:18]} 31. Ra1 {[%clk 0:00:31]}  Qd6 {[%clk 0:00:15]} 32. Rhg1 {[%clk 0:00:27]}  g6 {[%clk 0:00:14]} 33. h5 {[%clk 0:00:26]}  Bxc4 {[%clk 0:00:15]} 34. bxc4 {[%clk 0:00:24]}  Rxc4 {[%clk 0:00:15]} 35. hxg6 {[%clk 0:00:21]}  Nb4+ {[%clk 0:00:08]} 36. Kd1 {[%clk 0:00:20]}  hxg6 {[%clk 0:00:02]} 1-0


[Site "https://www.chess.com"]

[Event "Titled Tuesday Blitz December 27 Early 2022"]
[White "Buscar, Michael"]
[Black "Erzhanov, Arman"]
[WhiteFideId "2603616"]
[BlackFideId "4138821"]
[WhiteElo "2041"]
[BlackElo "2228"]
[Result "0-1"]
[Round "08"]
[TimeControl "180+2"]
[Date "2022.12.27"]
[WhiteClock "0:00:08"]
[BlackClock "0:00:22"]

1. e4 {[%clk 0:03:00]}  d6 {[%clk 0:02:01]} 2. d4 {[%clk 0:02:56]}  Nf6 {[%clk 0:02:01]} 3. Nc3 {[%clk 0:02:56]}  e5 {[%clk 0:02:02]} 4. Nf3 {[%clk 0:02:56]}  Nbd7 {[%clk 0:02:01]} 5. Bc4 {[%clk 0:02:53]}  Be7 {[%clk 0:02:02]} 6. h3 {[%clk 0:02:50]}  O-O {[%clk 0:02:03]} 7. Bg5 {[%clk 0:02:48]}  c6 {[%clk 0:02:03]} 8. Qd2 {[%clk 0:02:48]}  b5 {[%clk 0:02:03]} 9. Bb3 {[%clk 0:02:47]}  a6 {[%clk 0:02:03]} 10. a4 {[%clk 0:02:46]}  b4 {[%clk 0:02:03]} 11. Na2 {[%clk 0:02:38]}  Nxe4 {[%clk 0:02:04]} 12. Bxe7 {[%clk 0:02:38]}  Qxe7 {[%clk 0:01:46]} 13. Qxb4 {[%clk 0:02:38]}  exd4 {[%clk 0:01:46]} 14. O-O {[%clk 0:02:33]}  c5 {[%clk 0:01:46]} 15. Qe1 {[%clk 0:02:25]}  Ndf6 {[%clk 0:01:46]} 16. c3 {[%clk 0:02:22]}  dxc3 {[%clk 0:01:35]} 17. Nxc3 {[%clk 0:02:20]}  Bb7 {[%clk 0:01:35]} 18. Ng5 {[%clk 0:02:12]}  Rae8 {[%clk 0:01:30]} 19. Ngxe4 {[%clk 0:02:00]}  Nxe4 {[%clk 0:01:30]} 20. Nd5 {[%clk 0:02:00]}  Qg5 {[%clk 0:01:27]} 21. f4 {[%clk 0:01:53]}  Qg6 {[%clk 0:01:14]} 22. Qh4 {[%clk 0:01:26]}  Bxd5 {[%clk 0:01:04]} 23. Bxd5 {[%clk 0:01:23]}  Ng3 {[%clk 0:01:01]} 24. Rf2 {[%clk 0:01:13]}  Nf5 {[%clk 0:01:00]} 25. Qg5 {[%clk 0:01:10]}  Ne3 {[%clk 0:00:57]} 26. Bc6 {[%clk 0:00:55]}  Rb8 {[%clk 0:00:37]} 27. Re1 {[%clk 0:00:51]}  Nc4 {[%clk 0:00:35]} 28. Qe7 {[%clk 0:00:35]}  Nxb2 {[%clk 0:00:30]} 29. f5 {[%clk 0:00:33]}  Qf6 {[%clk 0:00:29]} 30. Qxf6 {[%clk 0:00:19]}  gxf6 {[%clk 0:00:30]} 31. Rd2 {[%clk 0:00:20]}  Nc4 {[%clk 0:00:30]} 32. Rd3 {[%clk 0:00:15]}  Rfd8 {[%clk 0:00:24]} 33. Re4 {[%clk 0:00:13]}  Ne5 {[%clk 0:00:25]} 34. Rg3+ {[%clk 0:00:12]}  Kf8 {[%clk 0:00:24]} 35. Bd5 {[%clk 0:00:13]}  Rb4 {[%clk 0:00:22]} 36. Rxb4 {[%clk 0:00:07]}  cxb4 {[%clk 0:00:23]} 37. a5 {[%clk 0:00:08]}  Rb8 {[%clk 0:00:23]} 38. Re3 {[%clk 0:00:06]}  Ke7 {[%clk 0:00:23]} 39. g4 {[%clk 0:00:06]}  h6 {[%clk 0:00:23]} 40. Kf2 {[%clk 0:00:07]}  Kd7 {[%clk 0:00:23]} 41. Kg3 {[%clk 0:00:07]}  Rb5 {[%clk 0:00:24]} 42. Bb3 {[%clk 0:00:04]}  Rxa5 {[%clk 0:00:24]} 43. Kh4 {[%clk 0:00:05]}  Ra3 {[%clk 0:00:22]} 44. Kh5 {[%clk 0:00:04]}  a5 {[%clk 0:00:22]} 45. Kxh6 {[%clk 0:00:05]}  a4 {[%clk 0:00:22]} 46. Bxa4+ {[%clk 0:00:05]}  Rxa4 {[%clk 0:00:22]} 47. Kg7 {[%clk 0:00:04]}  Ke7 {[%clk 0:00:21]} 48. h4 {[%clk 0:00:03]}  b3 {[%clk 0:00:22]} 49. g5 {[%clk 0:00:02]}  Rb4 {[%clk 0:00:17]} 50. gxf6+ {[%clk 0:00:02]}  Kd7 {[%clk 0:00:17]} 51. Re1 {[%clk 0:00:01]}  b2 {[%clk 0:00:18]} 52. Rb1 {[%clk 0:00:02]}  Nc4 {[%clk 0:00:17]} 53. h5 {[%clk 0:00:02]}  Nd2 {[%clk 0:00:17]} 54. Rxb2 {[%clk 0:00:03]}  Rxb2 {[%clk 0:00:18]} 55. h6 {[%clk 0:00:04]}  Ne4 {[%clk 0:00:18]} 56. h7 {[%clk 0:00:04]}  Rh2 {[%clk 0:00:18]} 57. h8=Q {[%clk 0:00:04]}  Rxh8 {[%clk 0:00:19]} 58. Kxh8 {[%clk 0:00:05]}  Nxf6 {[%clk 0:00:19]} 59. Kg7 {[%clk 0:00:06]}  Ke7 {[%clk 0:00:20]} 60. Kh6 {[%clk 0:00:04]}  d5 {[%clk 0:00:20]} 61. Kg5 {[%clk 0:00:05]}  d4 {[%clk 0:00:20]} 62. Kf4 {[%clk 0:00:06]}  Kd6 {[%clk 0:00:20]} 63. Kf3 {[%clk 0:00:06]}  Ke5 {[%clk 0:00:21]} 64. Ke2 {[%clk 0:00:07]}  Ke4 {[%clk 0:00:21]} 65. Kd2 {[%clk 0:00:08]}  d3 {[%clk 0:00:22]} 0-1


[Site "https://www.chess.com"]

[Event "Titled Tuesday Blitz December 27 Early 2022"]
[White "Clawitter, Craig"]
[Black "Shahaliyev, Ismayil"]
[WhiteFideId "2023105"]
[BlackFideId "13406388"]
[WhiteElo "2050"]
[BlackElo "2400"]
[Result "0-1"]
[Round "08"]
[TimeControl "180+2"]
[Date "2022.12.27"]
[WhiteClock "0:00:12"]
[BlackClock "0:00:23"]

1. e4 {[%clk 0:02:58]}  e6 {[%clk 0:02:57]} 2. d4 {[%clk 0:02:57]}  d5 {[%clk 0:02:57]} 3. e5 {[%clk 0:02:58]}  c5 {[%clk 0:02:55]} 4. c3 {[%clk 0:02:58]}  Qb6 {[%clk 0:02:55]} 5. Nf3 {[%clk 0:02:58]}  Bd7 {[%clk 0:02:53]} 6. Bd3 {[%clk 0:02:57]}  Bb5 {[%clk 0:02:53]} 7. dxc5 {[%clk 0:02:55]}  Bxc5 {[%clk 0:02:52]} 8. b4 {[%clk 0:02:56]}  Bxd3 {[%clk 0:02:45]} 9. Qxd3 {[%clk 0:02:54]}  Be7 {[%clk 0:02:34]} 10. O-O {[%clk 0:02:49]}  Nc6 {[%clk 0:02:21]} 11. Be3 {[%clk 0:02:48]}  Qc7 {[%clk 0:02:20]} 12. Bd4 {[%clk 0:02:48]}  Nh6 {[%clk 0:02:20]} 13. Na3 {[%clk 0:02:45]}  a6 {[%clk 0:02:11]} 14. Nc2 {[%clk 0:02:40]}  Nf5 {[%clk 0:02:09]} 15. a3 {[%clk 0:02:32]}  Rc8 {[%clk 0:02:05]} 16. Rac1 {[%clk 0:02:24]}  O-O {[%clk 0:02:04]} 17. g4 {[%clk 0:02:21]}  Nfxd4 {[%clk 0:02:00]} 18. cxd4 {[%clk 0:02:13]}  Qb6 {[%clk 0:01:58]} 19. Ne3 {[%clk 0:01:51]}  Na7 {[%clk 0:01:56]} 20. Ng2 {[%clk 0:01:48]}  Qb5 {[%clk 0:01:50]} 21. Qe3 {[%clk 0:01:36]}  Qa4 {[%clk 0:01:48]} 22. Nf4 {[%clk 0:01:34]}  Nb5 {[%clk 0:01:48]} 23. Rxc8 {[%clk 0:01:25]}  Rxc8 {[%clk 0:01:47]} 24. Rc1 {[%clk 0:01:25]}  Rxc1+ {[%clk 0:01:40]} 25. Qxc1 {[%clk 0:01:25]}  Qxa3 {[%clk 0:01:41]} 26. Qc8+ {[%clk 0:01:17]}  Bf8 {[%clk 0:01:41]} 27. Ng5 {[%clk 0:01:10]}  Qxb4 {[%clk 0:01:31]} 28. Nfxe6 {[%clk 0:01:02]}  Nxd4 {[%clk 0:01:03]} 29. Qe8 {[%clk 0:00:38]}  Qe7 {[%clk 0:01:02]} 30. Qxe7 {[%clk 0:00:32]}  Bxe7 {[%clk 0:01:02]} 31. Nxd4 {[%clk 0:00:24]}  Bxg5 {[%clk 0:01:02]} 32. Kf1 {[%clk 0:00:20]}  Bf4 {[%clk 0:01:01]} 33. Nf3 {[%clk 0:00:20]}  Kf8 {[%clk 0:01:00]} 34. Ke2 {[%clk 0:00:21]}  Ke7 {[%clk 0:01:00]} 35. Kd3 {[%clk 0:00:21]}  Ke6 {[%clk 0:00:58]} 36. Kd4 {[%clk 0:00:22]}  a5 {[%clk 0:00:57]} 37. Kc5 {[%clk 0:00:19]}  a4 {[%clk 0:00:50]} 38. Kb4 {[%clk 0:00:18]}  b5 {[%clk 0:00:30]} 39. Nd4+ {[%clk 0:00:18]}  Kxe5 {[%clk 0:00:30]} 40. Nxb5 {[%clk 0:00:19]}  Bxh2 {[%clk 0:00:28]} 41. Kxa4 {[%clk 0:00:17]}  Bg1 {[%clk 0:00:25]} 42. f3 {[%clk 0:00:16]}  g6 {[%clk 0:00:26]} 43. Kb4 {[%clk 0:00:16]}  h5 {[%clk 0:00:26]} 44. gxh5 {[%clk 0:00:15]}  gxh5 {[%clk 0:00:27]} 45. Nc3 {[%clk 0:00:12]}  h4 {[%clk 0:00:28]} 46. Ne2 {[%clk 0:00:12]}  h3 {[%clk 0:00:23]} 47. Nxg1 {[%clk 0:00:12]}  h2 {[%clk 0:00:23]} 0-1


[Site "https://www.chess.com"]

[Event "Titled Tuesday Blitz December 27 Early 2022"]
[White "Cnejev, Vladimir-Alexandru"]
[Black "Pakleza, Zbigniew"]
[WhiteFideId "1260898"]
[BlackFideId "1119290"]
[WhiteElo "2374"]
[BlackElo "2494"]
[Result "0-1"]
[Round "08"]
[TimeControl "180+2"]
[Date "2022.12.27"]
[WhiteClock "0:00:02"]
[BlackClock "0:00:06"]

1. e4 {[%clk 0:03:00]}  d6 {[%clk 0:03:00]} 2. d4 {[%clk 0:03:00]}  Nf6 {[%clk 0:03:00]} 3. Nd2 {[%clk 0:03:00]}  e5 {[%clk 0:02:57]} 4. c3 {[%clk 0:02:57]}  Nc6 {[%clk 0:02:55]} 5. Ngf3 {[%clk 0:02:54]}  Bg4 {[%clk 0:02:53]} 6. h3 {[%clk 0:02:52]}  Bxf3 {[%clk 0:02:52]} 7. Nxf3 {[%clk 0:02:53]}  exd4 {[%clk 0:02:23]} 8. cxd4 {[%clk 0:02:54]}  d5 {[%clk 0:02:23]} 9. e5 {[%clk 0:02:52]}  Ne4 {[%clk 0:02:17]} 10. a3 {[%clk 0:02:47]}  Be7 {[%clk 0:02:13]} 11. Be3 {[%clk 0:02:47]}  O-O {[%clk 0:02:13]} 12. Bd3 {[%clk 0:02:45]}  h6 {[%clk 0:02:00]} 13. O-O {[%clk 0:02:45]}  Rb8 {[%clk 0:01:49]} 14. Qc2 {[%clk 0:02:45]}  Ng5 {[%clk 0:01:46]} 15. Nxg5 {[%clk 0:02:44]}  Bxg5 {[%clk 0:01:47]} 16. f4 {[%clk 0:02:43]}  Bh4 {[%clk 0:01:44]} 17. f5 {[%clk 0:02:24]}  Bg5 {[%clk 0:01:40]} 18. Bf2 {[%clk 0:02:24]}  Re8 {[%clk 0:01:39]} 19. Rae1 {[%clk 0:02:09]}  Bf4 {[%clk 0:01:31]} 20. f6 {[%clk 0:01:15]}  gxf6 {[%clk 0:01:22]} 21. g3 {[%clk 0:01:15]}  fxe5 {[%clk 0:01:11]} 22. gxf4 {[%clk 0:01:14]}  e4 {[%clk 0:01:11]} 23. Bb5 {[%clk 0:01:08]}  Kh7 {[%clk 0:00:49]} 24. Bxc6 {[%clk 0:01:02]}  bxc6 {[%clk 0:00:50]} 25. Re3 {[%clk 0:00:39]}  Rg8+ {[%clk 0:00:39]} 26. Kh2 {[%clk 0:00:39]}  f5 {[%clk 0:00:35]} 27. b4 {[%clk 0:00:34]}  Qd6 {[%clk 0:00:26]} 28. Bg3 {[%clk 0:00:30]}  Rg6 {[%clk 0:00:26]} 29. Rg1 {[%clk 0:00:15]}  Rbg8 {[%clk 0:00:24]} 30. Ree1 {[%clk 0:00:13]}  h5 {[%clk 0:00:20]} 31. Qf2 {[%clk 0:00:13]}  a5 {[%clk 0:00:17]} 32. bxa5 {[%clk 0:00:09]}  Qxa3 {[%clk 0:00:18]} 33. Bh4 {[%clk 0:00:08]}  Qxa5 {[%clk 0:00:14]} 34. Rxg6 {[%clk 0:00:08]}  Rxg6 {[%clk 0:00:15]} 35. Rg1 {[%clk 0:00:08]}  Rxg1 {[%clk 0:00:10]} 36. Kxg1 {[%clk 0:00:09]}  Qc3 {[%clk 0:00:09]} 37. Kh2 {[%clk 0:00:05]}  e3 {[%clk 0:00:07]} 38. Qf3 {[%clk 0:00:02]}  Qd2+ {[%clk 0:00:08]} 39. Kg3 {[%clk 0:00:02]}  Qe1+ {[%clk 0:00:05]} 40. Kg2 {[%clk 0:00:03]}  Qxh4 {[%clk 0:00:05]} 41. Qxe3 {[%clk 0:00:03]}  Qf6 {[%clk 0:00:04]} 42. Qe8 {[%clk 0:00:03]}  Qg6+ {[%clk 0:00:05]} 43. Qxg6+ {[%clk 0:00:02]}  Kxg6 {[%clk 0:00:06]} 44. Kf3 {[%clk 0:00:02]}  Kf6 {[%clk 0:00:04]} 45. Kg3 {[%clk 0:00:01]}  Ke6 {[%clk 0:00:04]} 46. Kh4 {[%clk 0:00:01]}  c5 {[%clk 0:00:05]} 47. dxc5 {[%clk 0:00:02]}  d4 {[%clk 0:00:06]} 48. Kg3 {[%clk 0:00:02]}  Kd5 {[%clk 0:00:06]} 49. Kf3 {[%clk 0:00:02]}  Kxc5 {[%clk 0:00:06]} 0-1


[Site "https://www.chess.com"]

[Event "Titled Tuesday Blitz December 27 Early 2022"]
[White "Dias, Joao Batista"]
[Black "Zaichenko, Daria"]
[WhiteFideId "2108240"]
[BlackFideId "4197453"]
[WhiteElo "1796"]
[BlackElo "2104"]
[Result "1-0"]
[Round "08"]
[TimeControl "180+2"]
[Date "2022.12.27"]
[WhiteClock "0:00:56"]
[BlackClock "0:00:19"]

1. e4 {[%clk 0:03:00]}  c5 {[%clk 0:02:58]} 2. Nf3 {[%clk 0:03:00]}  Nc6 {[%clk 0:02:58]} 3. h3 {[%clk 0:02:59]}  e6 {[%clk 0:02:57]} 4. c4 {[%clk 0:02:54]}  d5 {[%clk 0:02:48]} 5. cxd5 {[%clk 0:02:53]}  exd5 {[%clk 0:02:49]} 6. exd5 {[%clk 0:02:54]}  Qxd5 {[%clk 0:02:49]} 7. Nc3 {[%clk 0:02:54]}  Qd8 {[%clk 0:02:47]} 8. Bb5 {[%clk 0:02:54]}  Bd7 {[%clk 0:02:46]} 9. O-O {[%clk 0:02:53]}  Nf6 {[%clk 0:02:45]} 10. Re1+ {[%clk 0:02:53]}  Be7 {[%clk 0:02:45]} 11. Qe2 {[%clk 0:02:52]}  Be6 {[%clk 0:02:30]} 12. Bxc6+ {[%clk 0:02:51]}  bxc6 {[%clk 0:02:29]} 13. Ne5 {[%clk 0:02:50]}  Qc7 {[%clk 0:02:24]} 14. d3 {[%clk 0:02:44]}  O-O {[%clk 0:02:23]} 15. Bg5 {[%clk 0:02:42]}  Nd5 {[%clk 0:02:19]} 16. Bxe7 {[%clk 0:02:39]}  Qxe7 {[%clk 0:02:07]} 17. Nxc6 {[%clk 0:02:29]}  Qg5 {[%clk 0:02:06]} 18. Qe5 {[%clk 0:02:23]}  Qxe5 {[%clk 0:01:36]} 19. Rxe5 {[%clk 0:02:12]}  Nf4 {[%clk 0:01:34]} 20. Re3 {[%clk 0:02:05]}  Kh8 {[%clk 0:01:30]} 21. Ne4 {[%clk 0:02:01]}  Rfc8 {[%clk 0:01:25]} 22. Ne5 {[%clk 0:01:56]}  f6 {[%clk 0:01:20]} 23. Nf3 {[%clk 0:01:46]}  Nd5 {[%clk 0:01:06]} 24. Re2 {[%clk 0:01:40]}  Bf7 {[%clk 0:01:00]} 25. Rc1 {[%clk 0:01:37]}  Nf4 {[%clk 0:00:59]} 26. Rd2 {[%clk 0:01:32]}  Bxa2 {[%clk 0:00:48]} 27. Rxc5 {[%clk 0:01:30]}  Rxc5 {[%clk 0:00:47]} 28. Nxc5 {[%clk 0:01:30]}  Bd5 {[%clk 0:00:47]} 29. h4 {[%clk 0:01:21]}  Re8 {[%clk 0:00:38]} 30. Kf1 {[%clk 0:01:18]}  Bxf3 {[%clk 0:00:33]} 31. gxf3 {[%clk 0:01:18]}  Rc8 {[%clk 0:00:22]} 32. b4 {[%clk 0:01:15]}  Rb8 {[%clk 0:00:21]} 33. Rb2 {[%clk 0:01:05]}  Rb5 {[%clk 0:00:20]} 34. Na4 {[%clk 0:00:57]}  a5 {[%clk 0:00:19]} 35. bxa5 {[%clk 0:00:56]} 1-0


[Site "https://www.chess.com"]